{"text_format":"1","workbook":"xlsx","n_sheets":22,"sheets":["Основна","Щорська районна гімназія","Щорська ЗОШ І-ІІІ ст. №1","Щорська ЗОШ І-ІІІ ст. №2","Кучинівська ЗОШ І-ІІІ ст.","Новоборовицька ЗОШ І-ІІІ ст.","Петровський НВК","Рогізківський НВК","Тихоновицька ЗОШ І-ІІІ ст.","Тур'янська ЗОШ І-ІІІ ст.","Хотуницька ЗОШ І-ІІІ ст.","В.Щимельський НВК","Гірська ЗОШ І-ІІ ст.","Єлінська ЗОШ І-ІІ ст.","Клюсівська ЗОШ і-ІІ ст.","Низківський НВК","Новомлинська ЗОШ І-ІІ ст.","Сновська ЗОШ І-ІІ ст.","Ст.Руднянська ЗОШ І-ІІ ст.","Смяцька ЗОШ І-ІІ ст.","Суничнянський НВК","Щорська СЮТ"],"not_rendered":{"charts":0,"images":0,"macros":1,"external_links":0,"defined_names":0,"comments":0,"pivot_tables":0},"unopened":[],"bounds":{"document_bytes":16777216,"sheet_cells":100000,"rows_first":2000,"rows_last":500,"rows_between":2000,"halvings":0,"cell_chars":16384,"cell_head_chars":4096},"cells_cut":0,"cells_raw":0,"read":"whole","date_system":"1900"}

{"sheet":"Основна","index":0,"n_rows":42,"n_cols":25,"rows_kept":42,"cut":false,"hidden":false,"merged":[[41,0,41,1]]}
["№ п /п","Назва","Щорська районна гімназія","Щорська ЗОШ І-ІІІ ст. №1","Щорська ЗОШ І-ІІІ ст. №2","Кучинівська ЗОШ І-ІІІ ст.","Новоборовицька ЗОШ І-ІІІ ст.","Петровський НВК","Рогізківський НВК","Тихоновицька ЗОШ І-ІІІ ст.","Тур'янська ЗОШ І-ІІІ ст.","Хотуницька ЗОШ І-ІІІ ст.","В.Щимельський НВК","Гірська ЗОШ І-ІІ ст.","Єлінська ЗОШ І-ІІ ст.","Клюсівська ЗОШ і-ІІ ст.","Низківський НВК","Новомлинська ЗОШ І-ІІ ст.","Сновська ЗОШ І-ІІ ст.","Ст.Руднянська ЗОШ І-ІІ ст.","Смяцька ЗОШ І-ІІ ст.","Суничнянський НВК","Щорська СЮТ","Всього по підручниках","Ціна без ПДВ за соденицю"]
[1,"Біологія",1,null,null,null,null,null,null,null,null,null,null,null,null,null,null,null,null,null,null,null,null,{"$f":"SUM(C2:W2)","v":1},12.8]
[2,"книг 2",null,null,null,null,null,null,null,null,null,null,null,null,null,null,null,null,null,null,null,null,null,0,12.97]
[3,"книг 3",1,null,null,null,null,null,null,null,null,null,null,null,null,null,null,null,null,null,null,null,null,1,12.98]
[4,"книг 4",null,null,null,null,null,null,null,null,null,null,null,null,null,null,null,null,null,null,null,null,null,0,11.16]
[5,"книг 5",1,null,null,null,null,null,null,null,null,null,null,null,null,null,null,null,null,null,null,null,null,1,12.95]
[6,"книг 6",null,null,null,null,null,null,null,null,null,null,null,null,null,null,null,null,null,null,null,null,null,0,11.58]
[7,"книг 7",1,null,null,null,null,null,null,null,null,null,null,null,null,null,null,null,null,null,null,null,null,1,11.94]
[8,"книг 8",null,null,null,null,null,null,null,null,null,null,null,null,null,null,null,null,null,null,null,null,null,0,19.170000000000002]
[9,"книг 9",1,null,null,null,null,null,null,null,null,null,null,null,null,null,null,null,null,null,null,null,null,1,22.08]
[10,"книг 10",null,null,null,null,null,null,null,null,null,null,null,null,null,null,null,null,null,null,null,null,null,0,26.35]
[11,"книг 11",1,null,null,null,null,null,null,null,null,null,null,null,null,null,null,null,null,null,null,null,null,1,25]
[12,"книг 12",1,null,null,null,null,null,null,null,null,null,null,null,null,null,null,null,null,null,null,null,null,1,26.12]
[13,"книг 13",1,null,null,null,null,null,null,null,null,null,null,null,null,null,null,null,null,null,null,null,null,1,26.21]
[14,"книг 14",null,null,null,null,null,null,null,null,null,null,null,null,null,null,null,null,null,null,null,null,null,0,2.2000000000000002]
[15,"книг 15",1,null,null,null,null,null,null,null,null,null,null,null,null,null,null,null,null,null,null,null,null,1,254.23]
[16,"книг 16",null,null,null,null,null,null,null,null,null,null,null,null,null,null,null,null,null,null,null,null,null,0,21.2]
[17,"книг 17",1,null,null,null,null,null,null,null,null,null,null,null,null,null,null,null,null,null,null,null,null,1,256.2]
[18,"книг 18",null,null,null,null,null,null,null,null,null,null,null,null,null,null,null,null,null,null,null,null,null,0,23.1]
[19,"книг 19",1,null,null,null,null,null,null,null,null,null,null,null,null,null,null,null,null,null,null,null,null,1,25.6]
[20,"книг 20",null,null,null,null,null,null,null,null,null,null,null,null,null,null,null,null,null,null,null,null,null,0,21.6]
[21,"книг 21",1,null,null,null,null,null,null,null,null,null,null,null,null,null,null,null,null,null,null,null,null,1,265.2]
[22,"книг 22",null,null,null,null,null,null,null,null,null,null,null,null,null,null,null,null,null,null,null,null,null,0,26.3]
[23,"книг 23",1,null,null,null,null,null,null,null,null,null,null,null,null,null,null,null,null,null,null,null,null,1,21.3]
[24,"книг 24",null,null,null,null,null,null,null,null,null,null,null,null,null,null,null,null,null,null,null,null,null,0,25.2]
[25,"книг 25",1,null,null,null,null,null,null,null,null,null,null,null,null,null,null,null,null,null,null,null,null,1,21.23]
[26,"книг 26",null,null,null,null,null,null,null,null,null,null,null,null,null,null,null,null,null,null,null,null,null,0,25.12]
[27,"книг 27",1,null,null,null,null,null,null,null,null,null,null,null,null,null,null,null,null,null,null,null,null,1,26.87]
[28,"книг 28",null,null,null,null,null,null,null,null,null,null,null,null,null,null,null,null,null,null,null,null,null,0,4.58]
[29,"книг 29",1,null,null,null,null,null,null,null,null,null,null,null,null,null,null,null,null,null,null,null,null,1,6.54]
[30,"книг 30",null,null,null,null,null,null,null,null,null,null,null,null,null,null,null,null,null,null,null,null,null,0,9.5399999999999991]
[31,"книг 31",1,null,null,null,null,null,null,null,null,null,null,null,null,null,null,null,null,null,null,null,null,1,9.5399999999999991]
[32,"книг 32",null,null,null,null,null,null,null,null,null,null,null,null,null,null,null,null,null,null,null,null,null,0,5.58]
[33,"книг 33",1,null,null,null,null,null,null,null,null,null,null,null,null,null,null,null,null,null,null,null,null,1,7.25]
[34,"книг 34",1,null,null,null,null,null,null,null,null,null,null,null,null,null,null,null,null,null,null,null,null,1,6.32]
[35,"книг 35",1,null,null,null,null,null,null,null,null,null,null,null,null,null,null,null,null,null,null,null,null,1,45.8]
[36,"книг 36",null,null,null,null,null,null,null,null,null,null,null,null,null,null,null,null,null,null,null,null,null,0,24.5]
[37,"книг 37",1,null,null,null,null,null,null,null,null,null,null,null,null,null,null,null,null,null,null,null,null,1,25.45]
[38,"книг 38",null,null,null,null,null,null,null,null,null,null,null,null,null,null,null,null,null,null,null,null,null,0,26.87]
[39,"книг 39",1,null,null,null,null,null,null,null,null,null,null,null,null,null,null,null,null,null,null,null,null,1,25.45]
[40,"книг 40",null,null,null,null,null,null,null,null,null,null,null,null,null,null,null,null,null,null,null,null,null,0,26.87]
["Всього по школах",null,{"$f":"SUM(C2:C41)","v":22},{"$f":"SUM(D2:D41)","v":0},0,0,0,0,0,0,0,0,0,0,0,0,0,0,0,0,0,0,0,{"$f":"SUM(X2:X10)","v":5}]

{"sheet":"Щорська районна гімназія","index":1,"n_rows":53,"n_cols":4,"rows_kept":53,"cut":false,"hidden":false,"merged":[]}
[]
["Від кого  Господарська группа",null,"Накладна №"]
["Код __________ від \"___\"  ___________ 20__ р."]
["Кому Щорська районна гімназія"]
["Через кого"]
["За довіреністю _______ № ______ від \" ____ \" ______________20 ___ р."]
["Підстава"]
[]
["Найменування","Кількість","Ціна","Сума"]
[{"$f":"IF(Основна!C2>0,Основна!B2,\"\")","v":"Біологія"},{"$f":"IF(Основна!C2>0,Основна!C2,\"\")","v":1},{"$f":"IF(Основна!C2>0,Основна!Y2,\"\")","v":12.8},{"$f":"IF(B10=\"\",\"\",IF(C10=\"\",\"\",B10*C10))","v":12.8}]
[{"$f":"IF(Основна!C3>0,Основна!B3,\"\")","v":""},{"$f":"IF(Основна!C3>0,Основна!C3,\"\")","v":""},{"$f":"IF(Основна!C3>0,Основна!Y3,\"\")","v":""},{"$f":"IF(B11=\"\",\"\",IF(C11=\"\",\"\",B11*C11))","v":""}]
[{"$f":"IF(Основна!C4>0,Основна!B4,\"\")","v":"книг 3"},{"$f":"IF(Основна!C4>0,Основна!C4,\"\")","v":1},{"$f":"IF(Основна!C4>0,Основна!Y4,\"\")","v":12.98},{"$f":"IF(B12=\"\",\"\",IF(C12=\"\",\"\",B12*C12))","v":12.98}]
[{"$f":"IF(Основна!C5>0,Основна!B5,\"\")","v":""},{"$f":"IF(Основна!C5>0,Основна!C5,\"\")","v":""},{"$f":"IF(Основна!C5>0,Основна!Y5,\"\")","v":""},""]
[{"$f":"IF(Основна!C6>0,Основна!B6,\"\")","v":"книг 5"},{"$f":"IF(Основна!C6>0,Основна!C6,\"\")","v":1},{"$f":"IF(Основна!C6>0,Основна!Y6,\"\")","v":12.95},12.95]
[{"$f":"IF(Основна!C7>0,Основна!B7,\"\")","v":""},{"$f":"IF(Основна!C7>0,Основна!C7,\"\")","v":""},{"$f":"IF(Основна!C7>0,Основна!Y7,\"\")","v":""},""]
[{"$f":"IF(Основна!C8>0,Основна!B8,\"\")","v":"книг 7"},{"$f":"IF(Основна!C8>0,Основна!C8,\"\")","v":1},{"$f":"IF(Основна!C8>0,Основна!Y8,\"\")","v":11.94},11.94]
[{"$f":"IF(Основна!C9>0,Основна!B9,\"\")","v":""},{"$f":"IF(Основна!C9>0,Основна!C9,\"\")","v":""},{"$f":"IF(Основна!C9>0,Основна!Y9,\"\")","v":""},""]
[{"$f":"IF(Основна!C10>0,Основна!B10,\"\")","v":"книг 9"},{"$f":"IF(Основна!C10>0,Основна!C10,\"\")","v":1},{"$f":"IF(Основна!C10>0,Основна!Y10,\"\")","v":22.08},22.08]
[{"$f":"IF(Основна!C11>0,Основна!B11,\"\")","v":""},{"$f":"IF(Основна!C11>0,Основна!C11,\"\")","v":""},{"$f":"IF(Основна!C11>0,Основна!Y11,\"\")","v":""},""]
[{"$f":"IF(Основна!C12>0,Основна!B12,\"\")","v":"книг 11"},{"$f":"IF(Основна!C12>0,Основна!C12,\"\")","v":1},{"$f":"IF(Основна!C12>0,Основна!Y12,\"\")","v":25},25]
[{"$f":"IF(Основна!C13>0,Основна!B13,\"\")","v":"книг 12"},{"$f":"IF(Основна!C13>0,Основна!C13,\"\")","v":1},{"$f":"IF(Основна!C13>0,Основна!Y13,\"\")","v":26.12},26.12]
[{"$f":"IF(Основна!C14>0,Основна!B14,\"\")","v":"книг 13"},{"$f":"IF(Основна!C14>0,Основна!C14,\"\")","v":1},{"$f":"IF(Основна!C14>0,Основна!Y14,\"\")","v":26.21},26.21]
[{"$f":"IF(Основна!C15>0,Основна!B15,\"\")","v":""},{"$f":"IF(Основна!C15>0,Основна!C15,\"\")","v":""},{"$f":"IF(Основна!C15>0,Основна!Y15,\"\")","v":""},""]
[{"$f":"IF(Основна!C16>0,Основна!B16,\"\")","v":"книг 15"},{"$f":"IF(Основна!C16>0,Основна!C16,\"\")","v":1},{"$f":"IF(Основна!C16>0,Основна!Y16,\"\")","v":254.23},254.23]
[{"$f":"IF(Основна!C17>0,Основна!B17,\"\")","v":""},{"$f":"IF(Основна!C17>0,Основна!C17,\"\")","v":""},{"$f":"IF(Основна!C17>0,Основна!Y17,\"\")","v":""},""]
[{"$f":"IF(Основна!C18>0,Основна!B18,\"\")","v":"книг 17"},{"$f":"IF(Основна!C18>0,Основна!C18,\"\")","v":1},{"$f":"IF(Основна!C18>0,Основна!Y18,\"\")","v":256.2},256.2]
[{"$f":"IF(Основна!C19>0,Основна!B19,\"\")","v":""},{"$f":"IF(Основна!C19>0,Основна!C19,\"\")","v":""},{"$f":"IF(Основна!C19>0,Основна!Y19,\"\")","v":""},""]
[{"$f":"IF(Основна!C20>0,Основна!B20,\"\")","v":"книг 19"},{"$f":"IF(Основна!C20>0,Основна!C20,\"\")","v":1},{"$f":"IF(Основна!C20>0,Основна!Y20,\"\")","v":25.6},25.6]
[{"$f":"IF(Основна!C21>0,Основна!B21,\"\")","v":""},{"$f":"IF(Основна!C21>0,Основна!C21,\"\")","v":""},{"$f":"IF(Основна!C21>0,Основна!Y21,\"\")","v":""},""]
[{"$f":"IF(Основна!C22>0,Основна!B22,\"\")","v":"книг 21"},{"$f":"IF(Основна!C22>0,Основна!C22,\"\")","v":1},{"$f":"IF(Основна!C22>0,Основна!Y22,\"\")","v":265.2},265.2]
[{"$f":"IF(Основна!C23>0,Основна!B23,\"\")","v":""},{"$f":"IF(Основна!C23>0,Основна!C23,\"\")","v":""},{"$f":"IF(Основна!C23>0,Основна!Y23,\"\")","v":""},""]
[{"$f":"IF(Основна!C24>0,Основна!B24,\"\")","v":"книг 23"},{"$f":"IF(Основна!C24>0,Основна!C24,\"\")","v":1},{"$f":"IF(Основна!C24>0,Основна!Y24,\"\")","v":21.3},21.3]
[{"$f":"IF(Основна!C25>0,Основна!B25,\"\")","v":""},{"$f":"IF(Основна!C25>0,Основна!C25,\"\")","v":""},{"$f":"IF(Основна!C25>0,Основна!Y25,\"\")","v":""},""]
[{"$f":"IF(Основна!C26>0,Основна!B26,\"\")","v":"книг 25"},{"$f":"IF(Основна!C26>0,Основна!C26,\"\")","v":1},{"$f":"IF(Основна!C26>0,Основна!Y26,\"\")","v":21.23},21.23]
[{"$f":"IF(Основна!C27>0,Основна!B27,\"\")","v":""},{"$f":"IF(Основна!C27>0,Основна!C27,\"\")","v":""},{"$f":"IF(Основна!C27>0,Основна!Y27,\"\")","v":""},""]
[{"$f":"IF(Основна!C28>0,Основна!B28,\"\")","v":"книг 27"},{"$f":"IF(Основна!C28>0,Основна!C28,\"\")","v":1},{"$f":"IF(Основна!C28>0,Основна!Y28,\"\")","v":26.87},26.87]
[{"$f":"IF(Основна!C29>0,Основна!B29,\"\")","v":""},{"$f":"IF(Основна!C29>0,Основна!C29,\"\")","v":""},{"$f":"IF(Основна!C29>0,Основна!Y29,\"\")","v":""},""]
[{"$f":"IF(Основна!C30>0,Основна!B30,\"\")","v":"книг 29"},{"$f":"IF(Основна!C30>0,Основна!C30,\"\")","v":1},{"$f":"IF(Основна!C30>0,Основна!Y30,\"\")","v":6.54},6.54]
[{"$f":"IF(Основна!C31>0,Основна!B31,\"\")","v":""},{"$f":"IF(Основна!C31>0,Основна!C31,\"\")","v":""},{"$f":"IF(Основна!C31>0,Основна!Y31,\"\")","v":""},""]
[{"$f":"IF(Основна!C32>0,Основна!B32,\"\")","v":"книг 31"},{"$f":"IF(Основна!C32>0,Основна!C32,\"\")","v":1},{"$f":"IF(Основна!C32>0,Основна!Y32,\"\")","v":9.5399999999999991},9.5399999999999991]
[{"$f":"IF(Основна!C33>0,Основна!B33,\"\")","v":""},{"$f":"IF(Основна!C33>0,Основна!C33,\"\")","v":""},{"$f":"IF(Основна!C33>0,Основна!Y33,\"\")","v":""},""]
[{"$f":"IF(Основна!C34>0,Основна!B34,\"\")","v":"книг 33"},{"$f":"IF(Основна!C34>0,Основна!C34,\"\")","v":1},{"$f":"IF(Основна!C34>0,Основна!Y34,\"\")","v":7.25},7.25]
[{"$f":"IF(Основна!C35>0,Основна!B35,\"\")","v":"книг 34"},{"$f":"IF(Основна!C35>0,Основна!C35,\"\")","v":1},{"$f":"IF(Основна!C35>0,Основна!Y35,\"\")","v":6.32},6.32]
[{"$f":"IF(Основна!C36>0,Основна!B36,\"\")","v":"книг 35"},{"$f":"IF(Основна!C36>0,Основна!C36,\"\")","v":1},{"$f":"IF(Основна!C36>0,Основна!Y36,\"\")","v":45.8},45.8]
[{"$f":"IF(Основна!C37>0,Основна!B37,\"\")","v":""},{"$f":"IF(Основна!C37>0,Основна!C37,\"\")","v":""},{"$f":"IF(Основна!C37>0,Основна!Y37,\"\")","v":""},""]
[{"$f":"IF(Основна!C38>0,Основна!B38,\"\")","v":"книг 37"},{"$f":"IF(Основна!C38>0,Основна!C38,\"\")","v":1},{"$f":"IF(Основна!C38>0,Основна!Y38,\"\")","v":25.45},25.45]
[{"$f":"IF(Основна!C39>0,Основна!B39,\"\")","v":""},{"$f":"IF(Основна!C39>0,Основна!C39,\"\")","v":""},{"$f":"IF(Основна!C39>0,Основна!Y39,\"\")","v":""},""]
[{"$f":"IF(Основна!C40>0,Основна!B40,\"\")","v":"книг 39"},{"$f":"IF(Основна!C40>0,Основна!C40,\"\")","v":1},{"$f":"IF(Основна!C40>0,Основна!Y40,\"\")","v":25.45},25.45]
[{"$f":"IF(Основна!C41>0,Основна!B41,\"\")","v":""},{"$f":"IF(Основна!C41>0,Основна!C41,\"\")","v":""},{"$f":"IF(Основна!C41>0,Основна!Y41,\"\")","v":""},""]
["Разом",{"$f":"SUM(B10:B49)","v":22},null,{"$f":"SUM(D10:D49)","v":1147.06}]
[]
[{"$f":"B50","v":22},"шт. на суму",{"$f":"D50","v":1147.06},{"$f":"C52","v":1147.06}]
["Видав","Приняв"]

{"sheet":"Щорська ЗОШ І-ІІІ ст. №1","index":2,"n_rows":0,"n_cols":0,"rows_kept":0,"cut":false,"hidden":false,"merged":[]}

{"sheet":"Щорська ЗОШ І-ІІІ ст. №2","index":3,"n_rows":0,"n_cols":0,"rows_kept":0,"cut":false,"hidden":false,"merged":[]}

{"sheet":"Кучинівська ЗОШ І-ІІІ ст.","index":4,"n_rows":0,"n_cols":0,"rows_kept":0,"cut":false,"hidden":false,"merged":[]}

{"sheet":"Новоборовицька ЗОШ І-ІІІ ст.","index":5,"n_rows":0,"n_cols":0,"rows_kept":0,"cut":false,"hidden":false,"merged":[]}

{"sheet":"Петровський НВК","index":6,"n_rows":0,"n_cols":0,"rows_kept":0,"cut":false,"hidden":false,"merged":[]}

{"sheet":"Рогізківський НВК","index":7,"n_rows":0,"n_cols":0,"rows_kept":0,"cut":false,"hidden":false,"merged":[]}

{"sheet":"Тихоновицька ЗОШ І-ІІІ ст.","index":8,"n_rows":0,"n_cols":0,"rows_kept":0,"cut":false,"hidden":false,"merged":[]}

{"sheet":"Тур'янська ЗОШ І-ІІІ ст.","index":9,"n_rows":0,"n_cols":0,"rows_kept":0,"cut":false,"hidden":false,"merged":[]}

{"sheet":"Хотуницька ЗОШ І-ІІІ ст.","index":10,"n_rows":0,"n_cols":0,"rows_kept":0,"cut":false,"hidden":false,"merged":[]}

{"sheet":"В.Щимельський НВК","index":11,"n_rows":0,"n_cols":0,"rows_kept":0,"cut":false,"hidden":false,"merged":[]}

{"sheet":"Гірська ЗОШ І-ІІ ст.","index":12,"n_rows":0,"n_cols":0,"rows_kept":0,"cut":false,"hidden":false,"merged":[]}

{"sheet":"Єлінська ЗОШ І-ІІ ст.","index":13,"n_rows":0,"n_cols":0,"rows_kept":0,"cut":false,"hidden":false,"merged":[]}

{"sheet":"Клюсівська ЗОШ і-ІІ ст.","index":14,"n_rows":0,"n_cols":0,"rows_kept":0,"cut":false,"hidden":false,"merged":[]}

{"sheet":"Низківський НВК","index":15,"n_rows":0,"n_cols":0,"rows_kept":0,"cut":false,"hidden":false,"merged":[]}

{"sheet":"Новомлинська ЗОШ І-ІІ ст.","index":16,"n_rows":0,"n_cols":0,"rows_kept":0,"cut":false,"hidden":false,"merged":[]}

{"sheet":"Сновська ЗОШ І-ІІ ст.","index":17,"n_rows":0,"n_cols":0,"rows_kept":0,"cut":false,"hidden":false,"merged":[]}

{"sheet":"Ст.Руднянська ЗОШ І-ІІ ст.","index":18,"n_rows":0,"n_cols":0,"rows_kept":0,"cut":false,"hidden":false,"merged":[]}

{"sheet":"Смяцька ЗОШ І-ІІ ст.","index":19,"n_rows":0,"n_cols":0,"rows_kept":0,"cut":false,"hidden":false,"merged":[]}

{"sheet":"Суничнянський НВК","index":20,"n_rows":0,"n_cols":0,"rows_kept":0,"cut":false,"hidden":false,"merged":[]}

{"sheet":"Щорська СЮТ","index":21,"n_rows":0,"n_cols":0,"rows_kept":0,"cut":false,"hidden":false,"merged":[]}